fUST/lending_fUST_20240924
["ID","MTS","AMOUNT","RATE_DAILY","PERIOD"]
[339061689,1727185865042,-151.0,0.00028219,7]
[339061690,1727185865051,-500.0,0.00028219,7]
[339061691,1727185865061,-508.64497633,0.00028219,7]
[339061692,1727185865070,-151.0,0.00028219,7]
[339061693,1727185865079,-426.315147,0.00028219,7]
[339061694,1727185865088,-671.66,0.00028219,7]
[339061695,1727185865098,-500.0,0.00028219,7]
[339061696,1727185865107,-500.0,0.00028219,7]
[339061697,1727185865116,-500.0,0.00028219,7]
[339061698,1727185865125,-1570.3,0.00028219,7]
[339061699,1727185865134,-500.0,0.00028219,7]
[339061700,1727185865144,-929.8,0.00028219,7]
[339061701,1727185865154,-825.571215,0.00028219,7]
[339061702,1727185865163,-825.571215,0.00028219,7]
[339061703,1727185865171,-500.0,0.00028219,7]
[339061704,1727185865181,-586.32,0.00028219,7]
[339061705,1727185865190,-331.266376,0.00028219,7]
[339061706,1727185865199,-500.0,0.00028219,7]
[339061707,1727185865209,-978.1,0.00028219,7]
[339061708,1727185865218,-331.266376,0.00028219,7]
[339061709,1727185865227,-240.90618,0.00028219,7]
[339061710,1727185865237,-500.0,0.00028219,7]
[339061711,1727185865247,-240.90618,0.00028219,7]
[339061712,1727185865256,-528.17,0.00028219,7]
[339061713,1727185865265,-500.0,0.00028219,7]
[339061714,1727185865275,-500.0,0.00028219,7]
[339061715,1727185865286,-500.0,0.00028219,7]
[339061716,1727185865296,-500.0,0.00028219,7]
[339061717,1727185865306,-500.0,0.00028219,7]
[339061718,1727185865315,-500.0,0.00028219,7]
[339061719,1727185865324,-500.0,0.00028219,7]
[339061720,1727185865333,-981.83,0.00028219,7]
[339061721,1727185865343,-703.98,0.00028219,7]
[339061722,1727185865355,-500.0,0.00028219,7]
[339061723,1727185865364,-500.0,0.00028219,7]
[339061724,1727185865373,-500.0,0.00028219,7]
[339061725,1727185865382,-564.57,0.00028219,7]
[339061726,1727185865392,-688.17,0.00028219,7]
[339061727,1727185865401,-1121.809827,0.00028219,7]
[339061728,1727185865410,-647.27,0.00028219,7]
[339061729,1727185865420,-500.0,0.00028219,7]
[339061730,1727185865429,-500.0,0.00028219,7]
[339061731,1727185865439,-500.0,0.00028219,7]
[339061732,1727185865448,-1121.809827,0.00028219,7]
[339061733,1727185865457,-1043.980229,0.00028219,7]
[339061734,1727185865467,-500.0,0.00028219,7]
[339061735,1727185865476,-500.0,0.00028219,7]
[339061736,1727185865486,-1043.980229,0.00028219,7]
[339061737,1727185865496,-500.0,0.00028219,7]
[339061738,1727185865505,-500.0,0.00028219,7]
[339061739,1727185865514,-500.0,0.00028219,7]
[339061740,1727185865523,-500.0,0.00028219,7]
[339061741,1727185865534,-462.30489965,0.00028219,7]
[339061742,1727185865544,-500.0,0.00028219,7]
[339061743,1727185865553,-500.0,0.00028219,7]
[339061744,1727185865563,-500.0,0.00028219,7]
[339061745,1727185865572,-902.91,0.00028219,7]
[339061746,1727185865582,-500.0,0.00028219,7]
[339061747,1727185865591,-151.0,0.00028219,7]
[339061748,1727185865600,-500.0,0.00028219,7]
[339061749,1727185865610,-151.0,0.00028219,7]
[339061750,1727185865619,-500.0,0.00028219,7]
[339061751,1727185865629,-500.0,0.00028219,7]
[339061752,1727185865640,-561.92,0.00028219,7]
[339061753,1727185865651,-500.0,0.00028219,7]
[339061754,1727185865661,-541.31,0.00028219,7]
[339061755,1727185865672,-500.0,0.00028219,7]
[339061756,1727185865682,-500.0,0.00028219,7]
[339061757,1727185865791,-500.0,0.00028219,7]
[339061758,1727185865801,-500.0,0.00028219,7]
[339061759,1727185865811,-1788.93,0.00028219,7]
[339061760,1727185865820,-500.0,0.00028219,7]
[339061761,1727185865830,-500.0,0.00028219,7]
[339061762,1727185865839,-662.69,0.00028219,7]
[339061763,1727185865851,-371.286522,0.00028219,7]
[339061764,1727185865861,-500.0,0.00028219,7]
[339061765,1727185865871,-500.0,0.00028219,7]
[339061766,1727185865880,-500.0,0.00028219,7]
[339061767,1727185865889,-500.0,0.00028219,7]
[339061768,1727185865898,-500.0,0.00028219,7]
[339061769,1727185865908,-371.286522,0.00028219,7]
[339061770,1727185865917,-1884.85,0.00028219,7]
[339061771,1727185865927,-506.38661533,0.00028219,7]
[339061772,1727185865937,-190.876674,0.00028219,7]
[339061773,1727185865948,-495.53108,0.00028219,7]
[339061774,1727185865958,-500.0,0.00028219,7]
[339061775,1727185865967,-500.0,0.00028219,7]
[339061776,1727185865976,-500.0,0.00028219,7]
[339061777,1727185865986,-500.0,0.00028219,7]
[339061778,1727185865995,-190.876674,0.00028219,7]
[339061779,1727185866005,-495.53108,0.00028219,7]
[339061780,1727185866014,-500.0,0.00028219,7]
[339061781,1727185866023,-500.0,0.00028219,7]
[339061782,1727185866033,-286.8407075,0.00028219,7]
[339061783,1727185866044,-500.0,0.00028219,7]
[339061784,1727185866053,-255.3627455,0.00028219,7]
[339061785,1727185866064,-500.0,0.00028219,7]
[339061786,1727185866073,-500.0,0.00028219,7]
[339061787,1727185866083,-151.0,0.00028219,7]
[339061788,1727185866092,-394.02348292,0.00028219,7]
[339061789,1727185866102,-500.0,0.00028219,7]
[339061790,1727185866111,-500.0,0.00028219,7]
[339061791,1727185866121,-600.17625982,0.00028219,7]
[339061792,1727185866130,-500.0,0.00028219,7]
[339061793,1727185866139,-500.0,0.00028219,7]
[339061794,1727185866149,-500.0,0.00028219,7]
[339061795,1727185866159,-500.0,0.00028219,7]
[339061796,1727185866168,-563.81,0.00028219,7]
[339061797,1727185866177,-637.77,0.00028219,7]
[339061798,1727185866186,-500.0,0.00028219,7]
[339061799,1727185866195,-298.58273,0.00028219,7]
[339061800,1727185866205,-500.0,0.00028219,7]
[339061801,1727185866214,-1161.23088,0.00028219,7]
[339061802,1727185866223,-325.818599,0.00028219,7]
[339061803,1727185866232,-500.0,0.00028219,7]
[339061804,1727185866243,-500.0,0.00028219,7]
[339061805,1727185866252,-500.0,0.00028219,7]
[339061806,1727185866263,-298.58273,0.00028219,7]
[339061807,1727185866272,-1161.23088,0.00028219,7]
[339061808,1727185866283,-500.0,0.00028219,7]
[339061809,1727185866292,-838.89,0.00028219,7]
[339061810,1727185866301,-325.818599,0.00028219,7]
[339061811,1727185866311,-500.0,0.00028219,7]
[339061812,1727185866320,-500.0,0.00028219,7]
[339061813,1727185866329,-928.12,0.00028219,7]
[339061814,1727185866338,-500.0,0.00028219,7]
[339061815,1727185866354,-588.89,0.00028219,7]
[339061816,1727185866364,-500.0,0.00028219,7]
[339061817,1727185866373,-1019.76,0.00028219,7]
[339061818,1727185866384,-324.20641,0.00028219,7]
[339061819,1727185866394,-500.0,0.00028219,7]
[339061820,1727185866405,-500.0,0.00028219,7]
[339061821,1727185866415,-324.20641,0.00028219,7]
[339061822,1727185866427,-287.28591236,0.00028219,7]
[339061823,1727185866438,-701.67,0.00028219,7]
[339061824,1727185866448,-500.0,0.00028219,7]
[339061825,1727185866459,-500.0,0.00028231,7]
[339061826,1727185866469,-500.0,0.00028322,5]
[339061827,1727185866478,-1750.13983125,0.00028344,5]
[339061828,1727185866487,-6692.3739639,0.00028414,2]
[339061829,1727185866496,-500.0,0.00028493,7]
[339061830,1727185866505,-500.0,0.00028493,7]
[339061831,1727185866515,-786.36,0.00028493,7]
[339061832,1727185866527,-625.36391742,0.00028493,7]
[339061833,1727185866537,-500.0,0.00028493,7]
[339061834,1727185866547,-176.75506887,0.00028493,7]
[339061835,1727185866556,-822.91,0.00028493,7]
[339061836,1727185866565,-664.95,0.00028493,7]
[339061837,1727185866574,-500.0,0.00028493,7]
[339061838,1727185866583,-720.13,0.00028493,7]
[339061839,1727185866593,-637.03,0.00028493,7]
[339061840,1727185866602,-856.26,0.00028493,7]
[339061841,1727185866611,-500.0,0.00028493,7]
[339061842,1727185866620,-500.0,0.00028493,7]
[339061843,1727185866630,-528.4,0.00028493,7]
[339061844,1727185866639,-500.0,0.00028493,7]
[339061845,1727185866647,-500.0,0.00028493,7]
[339061846,1727185866656,-500.0,0.00028493,7]
[339061847,1727185866665,-500.0,0.00028493,7]
[339061848,1727185866675,-500.0,0.00028493,7]
[339061849,1727185866684,-302.69810599,0.00028493,7]
[339061850,1727185866693,-500.0,0.00028493,7]
[339061851,1727185866702,-500.0,0.00028493,7]
[339061852,1727185866711,-500.0,0.00028493,7]
[339061853,1727185866721,-550.65,0.00028493,7]
[339061854,1727185866731,-500.0,0.00028493,7]
[339061855,1727185866740,-500.0,0.00028493,7]
[339061856,1727185866749,-500.0,0.00028493,7]
[339061857,1727185866759,-500.0,0.00028493,7]
[339061858,1727185866769,-500.0,0.00028493,2]
[339061859,1727185866778,-500.0,0.00028493,7]
[339061860,1727185866787,-500.0,0.00028493,7]
[339061861,1727185866797,-500.0,0.00028493,7]
[339061862,1727185866806,-500.0,0.00028493,7]
[339061863,1727185866816,-574.18,0.00028493,7]
[339061864,1727185866825,-500.0,0.00028493,7]
[339061865,1727185866834,-500.0,0.00028493,7]
[339061866,1727185866844,-536.26,0.00028493,7]
[339061867,1727185866854,-151.0,0.00028493,7]
[339061868,1727185866863,-151.0,0.00028493,7]
[339061869,1727185866873,-779.29,0.00028493,7]
[339061870,1727185866883,-500.0,0.00028493,7]
[339061871,1727185866892,-500.0,0.00028493,7]
[339061872,1727185866902,-500.0,0.00028493,7]
[339061873,1727185866911,-500.0,0.00028493,7]
[339061874,1727185866920,-981.24,0.00028493,7]
[339061875,1727185866930,-500.0,0.00028493,7]
[339061876,1727185866939,-500.0,0.00028493,7]
[339061877,1727185866949,-500.0,0.00028493,7]
[339061878,1727185866958,-668.98,0.00028493,7]
[339061879,1727185866967,-500.0,0.00028493,7]
[339061880,1727185866976,-667.57,0.00028493,7]
[339061881,1727185866985,-1224.72,0.00028493,7]
[339061882,1727185866995,-500.0,0.00028493,7]
[339061883,1727185867004,-289.272468,0.00028493,7]
[339061884,1727185867013,-151.0,0.00028493,7]
[339061885,1727185867022,-846.35,0.00028493,7]
[339061886,1727185867033,-523.09,0.00028493,7]
[339061887,1727185867046,-151.0,0.00028493,7]
[339061888,1727185867055,-500.0,0.00028493,7]
[339061889,1727185867064,-832.28,0.00028493,2]
[339061890,1727185867073,-539.78,0.00028493,7]
[339061891,1727185867082,-500.0,0.00028493,7]
[339061892,1727185867091,-500.0,0.00028493,7]
[339061893,1727185867100,-537.42043738,0.00028493,7]
[339061894,1727185867109,-500.0,0.00028493,7]
[339061895,1727185867118,-834.7,0.00028493,7]
[339061896,1727185867127,-500.0,0.00028493,7]
[339061897,1727185867136,-151.0,0.00028493,7]
[339061898,1727185867145,-882.2,0.00028493,7]
[339061899,1727185867154,-222.459046,0.00028493,7]
[339061900,1727185867163,-222.459046,0.00028493,7]
[339061901,1727185867173,-151.0,0.00028493,7]
[339061902,1727185867182,-529.46974478,0.00028493,7]
[339061903,1727185867192,-151.0,0.00028493,7]
[339061904,1727185867202,-700.78,0.00028493,7]
[339061905,1727185867212,-923.88,0.00028493,7]
[339061906,1727185867222,-151.0,0.00028493,7]
[339061907,1727185867232,-500.0,0.00028493,7]
[339061908,1727185867242,-500.0,0.00028493,7]
[339061909,1727185867251,-500.0,0.00028493,7]
[339061910,1727185867260,-500.0,0.00028493,7]
[339061911,1727185867269,-500.0,0.00028493,7]
[339061912,1727185867278,-699.55,0.00028493,7]
[339061913,1727185867293,-500.0,0.00028493,7]
[339061914,1727185867302,-500.0,0.00028493,7]
[339061915,1727185867311,-500.0,0.00028493,7]
[339061916,1727185867320,-500.0,0.00028493,2]
[339061917,1727185867329,-500.0,0.00028493,7]
[339061918,1727185867338,-500.0,0.00028493,7]
[339061919,1727185867351,-949.76,0.00028493,7]
[339061920,1727185867360,-500.0,0.00028493,7]
[339061921,1727185867369,-500.0,0.00028493,7]
[339061922,1727185867379,-603.71,0.00028493,7]
[339061923,1727185867388,-500.0,0.00028493,7]
[339061924,1727185867397,-500.0,0.00028493,7]
[339061925,1727185867407,-500.0,0.00028493,7]
[339061926,1727185867416,-153.97222313,0.00028493,7]
[339061927,1727185867427,-683.94,0.00028493,7]
[339061928,1727185867437,-940.34,0.00028493,7]
[339061929,1727185867446,-1000.0,0.00028493,7]
[339061930,1727185867455,-500.0,0.00028493,7]
[339061931,1727185867464,-354.51,0.00028493,7]
[339061932,1727185867474,-797.23,0.00028493,7]
[339061933,1727185867483,-500.0,0.00028493,7]
[339061934,1727185867492,-500.0,0.00028493,7]
[339061935,1727185867501,-523.77,0.00028493,7]
[339061936,1727185867510,-500.0,0.00028493,7]
[339061937,1727185867519,-634.21,0.00028493,7]
[339061938,1727185867528,-339.82532569,0.00028493,7]
[339061939,1727185867538,-500.0,0.00028493,7]
[339061940,1727185867547,-500.0,0.00028493,7]
[339061941,1727185867556,-500.0,0.00028493,7]
[339061942,1727185867565,-500.0,0.00028493,7]
[339061943,1727185867575,-500.0,0.00028493,7]
[339061944,1727185867584,-500.0,0.00028493,7]
[339061945,1727185867593,-500.0,0.00028493,7]
[339061946,1727185867602,-500.0,0.00028493,7]
[339061947,1727185867611,-500.0,0.00028493,7]
[339061948,1727185867712,-500.0,0.00028493,7]
[339061949,1727185867722,-325.25479435,0.00028493,7]
[339061950,1727185867732,-774.11,0.00028493,7]
[339061951,1727185867742,-500.0,0.00028493,7]
[339061952,1727185867752,-500.0,0.00028493,7]
[339061953,1727185867762,-532.41,0.00028493,7]
[339061954,1727185867772,-519.04,0.00028493,7]
[339061955,1727185867784,-994.06,0.00028493,7]
[339061956,1727185867794,-751.74,0.00028493,7]
[339061957,1727185867803,-641.08,0.00028493,7]
[339061958,1727185867813,-500.0,0.00028493,7]
[339061959,1727185867823,-352.26794397,0.00028493,7]
[339061960,1727185867833,-810.17,0.00028493,2]
[339061961,1727185867842,-922.97,0.00028493,7]
[339061962,1727185867852,-500.0,0.00028493,7]
[339061963,1727185867862,-500.0,0.00028493,7]
[339061964,1727185867871,-1474.2,0.00028493,7]
[339061965,1727185867881,-675.51,0.00028493,7]
[339061966,1727185867890,-151.0,0.00028493,7]
[339061967,1727185867900,-930.14,0.00028493,7]
[339061968,1727185867909,-623.3,0.00028493,7]
[339061969,1727185867919,-500.0,0.00028493,7]
[339061970,1727185867928,-500.0,0.00028493,7]
[339061971,1727185867938,-525.278445,0.00028493,7]
[339061972,1727185867948,-3188.19,0.00028493,7]
[339061973,1727185867958,-500.0,0.00028493,7]
[339061974,1727185867967,-525.278445,0.00028493,7]
[339061975,1727185867977,-1028.41,0.00028493,7]
[339061976,1727185867986,-1600.85,0.00028493,7]
[339061977,1727185867996,-500.0,0.00028493,7]
[339061978,1727185868006,-1081.35,0.00028493,7]
[339061979,1727185868017,-560.94789587,0.00028493,7]
[339061980,1727185868028,-500.0,0.00028493,7]
[339061981,1727185868039,-500.0,0.00028493,7]
[339061982,1727185868051,-500.0,0.00028493,7]
[339061983,1727185868062,-500.0,0.00028493,7]
[339061984,1727185868071,-500.0,0.00028493,7]
[339061985,1727185868082,-755.32,0.00028493,7]
[339061986,1727185868093,-500.0,0.00028493,7]
[339061987,1727185868105,-500.0,0.00028493,7]
[339061988,1727185868115,-430.058416,0.00028493,7]
[339061989,1727185868128,-518.85,0.00028493,7]
[339061990,1727185868138,-500.0,0.00028493,7]
[339061991,1727185868149,-430.058416,0.00028493,7]
[339061992,1727185868159,-537.38,0.00028493,7]
[339061993,1727185868169,-500.0,0.00028493,7]
[339061994,1727185868179,-500.0,0.00028493,7]
[339061995,1727185868189,-515.24076426,0.00028493,7]
[339061996,1727185868199,-500.0,0.00028493,7]
[339061997,1727185868208,-1428.87,0.00028493,7]
[339061998,1727185868217,-500.0,0.00028493,7]
[339061999,1727185868227,-500.0,0.00028493,7]
[339062000,1727185868237,-350.94682648,0.00028493,7]
[339062001,1727185868246,-894.35,0.00028493,7]
[339062002,1727185868257,-719.56,0.00028493,7]
[339062003,1727185868267,-252.68,0.00028493,7]
[339062004,1727185868277,-500.0,0.00028493,7]
[339062005,1727185868288,-835.58,0.00028493,7]
[339062006,1727185868298,-689.75,0.00028493,7]
[339062007,1727185868307,-500.0,0.00028493,7]
[339062008,1727185868317,-1344.762998,0.00028493,7]
[339062009,1727185868327,-500.0,0.00028493,7]
[339062010,1727185868339,-1344.762998,0.00028493,7]
[339062011,1727185868354,-671.66,0.00028493,7]
[339062012,1727185868365,-500.0,0.00028493,7]
[339062013,1727185868375,-500.0,0.00028493,7]
[339062014,1727185868384,-500.0,0.00028493,7]
[339062015,1727185868394,-1570.3,0.00028493,7]
[339062016,1727185868403,-500.0,0.00028493,7]
[339062017,1727185868413,-929.8,0.00028493,7]
[339062018,1727185868424,-501.9677723,0.00028493,7]
[339062019,1727185868435,-586.32,0.00028493,7]
[339062020,1727185868446,-500.0,0.00028493,7]
[339062021,1727185868456,-978.1,0.00028493,7]
[339062022,1727185868466,-500.0,0.00028493,7]
[339062023,1727185868485,-528.17,0.00028493,7]
[339062024,1727185868501,-500.0,0.00028493,7]
[339062025,1727185868511,-500.0,0.00028493,7]
[339062026,1727185868522,-500.0,0.00028493,7]
[339062027,1727185868534,-500.0,0.00028493,7]
[339062028,1727185868545,-500.0,0.00028493,7]
[339062029,1727185868555,-500.0,0.00028493,7]
[339062030,1727185868565,-981.83,0.00028493,7]
[339062031,1727185868575,-500.0,0.00028493,7]
[339062032,1727185868584,-703.98,0.00028493,7]
[339062033,1727185868594,-500.0,0.00028493,7]
[339062034,1727185868604,-500.0,0.00028493,7]
[339062035,1727185868613,-500.0,0.00028493,7]
[339062036,1727185868623,-564.57,0.00028493,7]
[339062037,1727185868632,-688.17,0.00028493,7]
[339062038,1727185868642,-1121.809827,0.00028493,7]
[339062039,1727185868652,-647.27,0.00028493,7]
[339062040,1727185868661,-500.0,0.00028493,7]
[339062041,1727185868670,-500.0,0.00028493,7]
[339062042,1727185868680,-500.0,0.00028493,7]
[339062043,1727185868690,-1121.809827,0.00028493,7]
[339062044,1727185868699,-1043.980229,0.00028493,7]
[339062045,1727185868709,-500.0,0.00028493,7]
[339062046,1727185868718,-500.0,0.00028493,7]
[339062047,1727185868727,-1043.980229,0.00028493,7]
[339062048,1727185868737,-500.0,0.00028493,7]
[339062049,1727185868747,-500.0,0.00028493,7]
[339062050,1727185868756,-500.0,0.00028493,7]
[339062051,1727185868765,-500.0,0.00028493,7]
[339062052,1727185868775,-500.0,0.00028493,7]
[339062053,1727185868787,-500.0,0.00028493,7]
[339062054,1727185868796,-500.0,0.00028493,7]
[339062055,1727185868806,-500.0,0.00028493,7]
[339062056,1727185868816,-902.91,0.00028493,7]
[339062057,1727185868826,-151.0,0.00028493,7]
[339062058,1727185868835,-500.0,0.00028493,7]
[339062059,1727185868845,-151.0,0.00028493,7]
[339062060,1727185868855,-500.0,0.00028493,7]
[339062061,1727185868864,-395.39897903,0.00028493,7]
[339062062,1727185868874,-561.92,0.00028493,7]
[339062063,1727185868883,-500.0,0.00028493,7]
[339062064,1727185868893,-541.31,0.00028493,7]
[339062065,1727185868903,-500.0,0.00028493,7]
[339062066,1727185868913,-500.0,0.00028493,7]
[339062067,1727185868923,-500.0,0.00028493,7]
[339062068,1727185868932,-500.0,0.00028493,7]
[339062069,1727185868942,-1788.93,0.00028493,7]
[339062070,1727185868952,-500.0,0.00028493,7]
[339062071,1727185868961,-500.0,0.00028493,7]
[339062072,1727185868971,-662.69,0.00028493,7]
[339062073,1727185868981,-371.286522,0.00028493,7]
[339062074,1727185868991,-500.0,0.00028493,7]
[339062075,1727185869000,-500.0,0.00028493,7]
[339062076,1727185869010,-500.0,0.00028493,7]
[339062077,1727185869019,-500.0,0.00028493,7]
[339062078,1727185869028,-500.0,0.00028493,7]
[339062079,1727185869039,-371.286522,0.00028493,7]
[339062080,1727185869049,-1884.85,0.00028493,7]
[339062081,1727185869059,-190.876674,0.00028493,7]
[339062082,1727185869068,-500.0,0.00028493,7]
[339062083,1727185869078,-495.53108,0.00028493,7]
[339062084,1727185869087,-500.0,0.00028493,7]
[339062085,1727185869097,-500.0,0.00028493,7]
[339062086,1727185869106,-500.0,0.00028493,7]
[339062087,1727185869116,-190.876674,0.00028493,7]
[339062088,1727185869125,-495.53108,0.00028493,7]
[339062089,1727185869135,-500.0,0.00028493,7]
[339062090,1727185869144,-177.33717083,0.00028493,7]
[339062091,1727185869154,-500.0,0.00028493,7]
[339062092,1727185869164,-500.0,0.00028493,7]
[339062093,1727185869173,-500.0,0.00028493,7]
[339062094,1727185869183,-151.0,0.00028493,7]
[339062095,1727185869193,-500.0,0.00028493,7]
[339062096,1727185869202,-500.0,0.00028493,7]
[339062097,1727185869211,-500.0,0.00028493,7]
[339062098,1727185869221,-500.0,0.00028493,7]
[339062099,1727185869231,-500.0,0.00028493,7]
[339062100,1727185869241,-500.0,0.00028493,7]
[339062101,1727185869250,-563.81,0.00028493,7]
[339062102,1727185869259,-637.77,0.00028493,7]
[339062103,1727185869270,-500.0,0.00028493,7]
[339062104,1727185869279,-298.58273,0.00028493,7]
[339062105,1727185869290,-500.0,0.00028493,7]
[339062106,1727185869300,-1161.23088,0.00028493,7]
[339062107,1727185869310,-325.818599,0.00028493,7]
[339062108,1727185869319,-567.85932667,0.00028493,7]
[339062109,1727185869329,-500.0,0.00028493,7]
[339062110,1727185869338,-500.0,0.00028493,7]
[339062111,1727185869350,-1161.23088,0.00028493,7]
[339062112,1727185869359,-303.74049159,0.00028493,7]
[339062113,1727185869369,-298.58273,0.00028493,7]
[339062114,1727185869378,-838.89,0.00028493,7]
[339062115,1727185869387,-325.818599,0.00028493,7]
[339062116,1727185869397,-500.0,0.00028493,7]
[339062117,1727185869407,-500.0,0.00028493,7]
[339062118,1727185869416,-928.12,0.00028493,7]
[339062119,1727185869426,-500.0,0.00028493,7]
[339062120,1727185869435,-588.89,0.00028493,7]
[339062121,1727185869444,-500.0,0.00028493,7]
[339062122,1727185869453,-1019.76,0.00028493,7]
[339062123,1727185869463,-324.20641,0.00028493,7]
[339062124,1727185869562,-500.0,0.00028493,7]
[339062125,1727185869572,-506.70673111,0.00028493,7]
[339062126,1727185869582,-324.20641,0.00028493,7]
[339062127,1727185869591,-701.67,0.00028493,7]
[339062128,1727185869601,-500.0,0.00028493,7]
[339062129,1727185869610,-503.87996899,0.00028505,7]
[339062130,1727185869621,-302.09901216,0.00028521,5]
[339062131,1727185869630,-1363.7,0.00028603,4]
[339062132,1727185869640,-6692.3739639,0.00028725,2]
[339062133,1727185869650,-823.0,0.00028729,2]
[339062134,1727185869659,-500.0,0.00028767,7]
[339062135,1727185869669,-500.0,0.00028767,7]
[339062136,1727185869678,-786.36,0.00028767,7]
[339062137,1727185869689,-500.0,0.00028767,7]
[339062138,1727185869699,-822.91,0.00028767,7]
[339062139,1727185869708,-664.95,0.00028767,7]
[339062140,1727185869717,-500.0,0.00028767,7]
[339062141,1727185869726,-720.13,0.00028767,7]
[339062142,1727185869736,-637.03,0.00028767,7]
[339062143,1727185869745,-856.26,0.00028767,7]
[339062144,1727185869754,-500.0,0.00028767,7]
[339062145,1727185869764,-500.0,0.00028767,7]
[339062146,1727185869773,-528.4,0.00028767,7]
[339062147,1727185869786,-173.9533829,0.00028767,7]
[339062148,1727185869795,-500.0,0.00028767,7]
[339062149,1727185869804,-500.0,0.00028767,7]
[339062150,1727185869813,-500.0,0.00028767,7]
[339062151,1727185869822,-500.0,0.00028767,7]
[339062152,1727185869832,-644.93681182,0.00028767,7]
[339062153,1727185869841,-500.0,0.00028767,7]
[339062154,1727185869851,-500.0,0.00028767,7]
[339062155,1727185869863,-550.65,0.00028767,7]
[339062156,1727185869873,-500.0,0.00028767,7]
[339062157,1727185869882,-500.0,0.00028767,7]
[339062158,1727185869892,-500.0,0.00028767,7]
[339062159,1727185869901,-500.0,0.00028767,7]
[339062160,1727185869912,-500.0,0.00028767,2]
[339062161,1727185869923,-500.0,0.00028767,7]
[339062162,1727185869934,-500.0,0.00028767,7]
[339062163,1727185869945,-500.0,0.00028767,7]
[339062164,1727185869956,-336.90434466,0.00028767,7]
[339062165,1727185869965,-574.18,0.00028767,7]
[339062166,1727185869974,-500.0,0.00028767,7]
[339062167,1727185869984,-500.0,0.00028767,7]
[339062168,1727185869994,-151.0,0.00028767,7]
[339062169,1727185870004,-536.26,0.00028767,7]
[339062170,1727185870016,-779.29,0.00028767,7]
[339062171,1727185870027,-500.0,0.00028767,7]
[339062172,1727185870043,-355.52244,0.00028767,7]
[339062173,1727185870053,-500.0,0.00028767,7]
[339062174,1727185870062,-355.52244,0.00028767,7]
[339062175,1727185870071,-500.0,0.00028767,7]
[339062176,1727185870080,-500.0,0.00028767,7]
[339062177,1727185870089,-981.24,0.00028767,7]
[339062178,1727185870099,-500.0,0.00028767,7]
[339062179,1727185870108,-500.0,0.00028767,7]
[339062180,1727185870117,-500.0,0.00028767,7]
[339062181,1727185870127,-668.98,0.00028767,7]
[339062182,1727185870138,-500.0,0.00028767,7]
[339062183,1727185870147,-667.57,0.00028767,7]
[339062184,1727185870156,-1224.72,0.00028767,7]
[339062185,1727185870166,-500.0,0.00028767,7]
[339062186,1727185870175,-846.35,0.00028767,7]
[339062187,1727185870186,-523.09,0.00028767,7]
[339062188,1727185870196,-500.0,0.00028767,7]